bitfinex/quotes_BTCUSD_20241028
["timestamp","ask_amount","ask_price","bid_price","bid_amount"]
[1730108726222,8.844426,68350.0,68349.0,1.45135286]
[1730108727337,8.79587474,68350.0,68349.0,1.45135286]
[1730108727620,8.79587474,68350.0,68349.0,1.40988354]
[1730108727844,8.79587474,68350.0,68349.0,1.42534619]
[1730108728044,8.79587474,68350.0,68349.0,1.43834619]
[1730108728272,8.79587474,68350.0,68349.0,1.45134619]
[1730108728699,8.76661374,68350.0,68349.0,1.32460735]
[1730108728910,8.73735274,68350.0,68349.0,1.32460735]
[1730108729117,8.73735274,68350.0,68349.0,1.33760352]
[1730108729561,8.73735274,68350.0,68349.0,1.32460352]
[1730108730265,8.70809174,68350.0,68349.0,1.32460352]
[1730108731125,8.70809174,68350.0,68349.0,1.31160352]
[1730108731337,8.70809174,68350.0,68349.0,1.32460352]
[1730108731570,8.70809174,68350.0,68349.0,1.33760352]
[1730108731992,7.9110406,68350.0,68349.0,1.33760352]
[1730108732228,7.86469129,68350.0,68349.0,1.33760352]
[1730108732664,7.83543029,68350.0,68349.0,1.33760352]
[1730108732890,7.74764729,68350.0,68349.0,1.33760352]
[1730108733104,7.71838629,68350.0,68349.0,1.89760352]
[1730108733327,7.46485536,68350.0,68349.0,1.89760352]
[1730108733542,7.46485536,68350.0,68349.0,1.97559587]
[1730108733755,7.37707236,68350.0,68349.0,1.97559587]
[1730108734013,7.31855036,68350.0,68349.0,2.02119055]
[1730108734232,7.31855036,68350.0,68349.0,3.28609055]
[1730108734439,7.31855036,68350.0,68349.0,3.48623098]
[1730108734646,7.26002836,68350.0,68349.0,3.26009055]
[1730108734983,5.72635996,68350.0,68349.0,3.28609055]
[1730108735190,5.72635996,68350.0,68349.0,3.32621376]
[1730108735191,5.70261187,68350.0,68349.0,3.32621376]
[1730108735400,5.70261187,68350.0,68349.0,3.27309055]
[1730108735617,5.61916471,68350.0,68349.0,3.11156167]
[1730108735832,5.53138171,68350.0,68349.0,3.286011]
[1730108736040,5.50212071,68350.0,68349.0,3.315341]
[1730108736262,5.50212071,68350.0,68349.0,3.289341]
[1730108736688,5.37475506,68350.0,68349.0,3.51537006]
[1730108736924,5.23277213,68350.0,68349.0,3.51537006]
[1730108737354,5.16872415,68350.0,68349.0,3.51537006]
[1730108737563,5.13946315,68350.0,68349.0,3.52837006]
[1730108738029,5.02241915,68350.0,68349.0,3.42763122]
[1730108738253,5.02241915,68350.0,68349.0,3.54137006]
[1730108738819,4.96389715,68350.0,68349.0,2.98137006]
[1730108739037,4.86109179,68350.0,68349.0,2.59389167]
[1730108739501,4.83183079,68350.0,68349.0,2.59389167]
[1730108739697,4.71478679,68350.0,68349.0,2.59389167]
[1730108740619,4.65626479,68350.0,68349.0,2.59389167]
[1730108740821,4.54848179,68350.0,68349.0,2.59389167]
[1730108741669,4.48995979,68350.0,68349.0,3.15389167]
[1730108741877,4.46069879,68350.0,68349.0,3.15389167]
[1730108742060,4.40217679,68350.0,68349.0,3.15389167]
[1730108742503,4.37291579,68350.0,68349.0,3.15389167]
[1730108745299,4.31439379,68350.0,68349.0,3.15389167]
[1730108745511,4.25587179,68350.0,68349.0,3.14389167]
[1730108745683,4.16808879,68350.0,68349.0,3.35671267]
[1730108745900,4.10956679,68350.0,68349.0,3.08867383]
[1730108746054,4.07497831,68350.0,68349.0,3.20241267]
[1730108746561,4.04571731,68350.0,68349.0,3.20241267]
[1730108746787,3.98719531,68350.0,68349.0,3.20241267]
[1730108747428,3.87698942,68350.0,68349.0,3.20241267]
[1730108747645,3.84772842,68350.0,68349.0,3.20241267]
[1730108748798,3.75994542,68350.0,68349.0,3.58962101]
[1730108749036,3.70142342,68350.0,68349.0,3.58962101]
[1730108749684,3.67216242,68350.0,68349.0,3.58962101]
[1730108750749,3.64290142,68350.0,68349.0,3.02962101]
[1730108750911,3.52585742,68350.0,68349.0,2.9878352]
[1730108751148,3.52585742,68350.0,68349.0,3.01658211]
[1730108751352,3.50446613,68350.0,68349.0,3.00358097]
[1730108751500,3.47520513,68350.0,68349.0,3.01658097]
[1730108751722,3.31289284,68350.0,68349.0,3.02958097]
[1730108751889,3.27994506,68350.0,68349.0,3.01658097]
[1730108752706,3.25068406,68350.0,68349.0,3.01658097]
[1730108753801,3.22142306,68350.0,68349.0,3.03658097]
[1730108754008,3.19216206,68350.0,68349.0,3.04958097]
[1730108754216,3.16290106,68350.0,68349.0,3.04958097]
[1730108755794,3.10437906,68350.0,68349.0,3.04958097]
[1730108756210,3.07511806,68350.0,68349.0,3.04958097]
[1730108757921,3.04585706,68350.0,68349.0,2.87428097]
[1730108758138,2.95807406,68350.0,68349.0,2.87428097]
[1730108761666,2.89955206,68350.0,68349.0,2.85428097]
[1730108761878,2.87029106,68350.0,68349.0,2.85428097]
[1730108762727,2.75324706,68350.0,68349.0,2.85428097]
[1730108763188,2.75324706,68350.0,68349.0,3.39428097]
[1730108763189,2.72398606,68350.0,68349.0,3.39428097]
[1730108764583,2.66753832,68350.0,68349.0,3.39428097]
[1730108764811,2.66753832,68350.0,68349.0,3.39414584]
[1730108765040,2.66753832,68350.0,68349.0,3.3942203]
[1730108766795,2.66753832,68350.0,68349.0,2.8257125]
[1730108767025,2.63458957,68350.0,68349.0,2.85421906]
[1730108768168,2.63458957,68350.0,68349.0,2.85464833]
[1730108768650,2.63458957,68350.0,68349.0,2.85464742]
[1730108772307,2.63458957,68350.0,68349.0,2.85456217]
[1730108773128,2.50645555,68350.0,68349.0,2.84156217]
[1730108773588,2.50645555,68350.0,68349.0,3.38856217]
[1730108774002,2.50645555,68350.0,68349.0,3.40156217]
[1730108774206,2.50645555,68350.0,68349.0,3.41456217]
[1730108776206,2.50645555,68350.0,68349.0,3.41456198]
[1730108776419,2.38941155,68350.0,68349.0,3.41456198]
[1730108776641,2.30162855,68350.0,68349.0,3.41456198]
[1730108776860,2.24310655,68350.0,68349.0,3.41456198]
[1730108777557,2.24310655,68350.0,68349.0,2.85456198]
[1730108777993,1.86654861,68350.0,68349.0,2.90134635]
[1730108778215,1.86654861,68350.0,68349.0,2.86122314]
[1730108778433,1.86654861,68350.0,68349.0,2.81962563]
[1730108778694,1.83728761,68350.0,68349.0,2.81962563]
[1730108779122,1.70064702,68350.0,68349.0,2.81962563]
[1730108779381,1.67050027,68350.0,68349.0,2.81962563]
[1730108779620,1.58562014,68350.0,68349.0,2.84812898]
[1730108779844,1.52709814,68350.0,68349.0,2.81962563]
[1730108780032,1.49783714,68350.0,68349.0,2.82465999]
[1730108780273,1.49783714,68350.0,68349.0,2.83271602]
[1730108780484,1.49783714,68350.0,68349.0,2.85271602]
[1730108781137,1.37048326,68350.0,68349.0,2.85271602]
[1730108781356,1.25592442,68350.0,68349.0,2.83067845]
[1730108781613,0.61647347,68350.0,68349.0,2.84367845]
[1730108781808,0.47016847,68350.0,68349.0,2.83067845]
[1730108782015,0.45273242,68350.0,68349.0,2.84367845]
[1730108782543,0.45273242,68350.0,68349.0,2.83067845]
[1730108782756,0.42347142,68350.0,68349.0,2.83067845]
[1730108782986,0.30642742,68350.0,68349.0,2.83512796]
[1730108783208,0.30642742,68350.0,68349.0,2.81962563]
[1730108783652,0.27716642,68350.0,68349.0,2.81962563]
[1730108783855,0.0789,68364.0,68361.0,0.15673137]
[1730108784109,0.0789,68364.0,68361.0,1.30367321]
[1730108784524,0.0789,68364.0,68361.0,2.56857321]
[1730108784991,0.0789,68364.0,68361.0,2.79469515]
[1730108785211,0.0789,68364.0,68361.0,2.83619713]
[1730108786271,0.0789,68364.0,68361.0,2.84919713]
[1730108787358,0.0789,68364.0,68361.0,2.62171945]
[1730108787599,0.0789,68364.0,68361.0,2.62307519]
[1730108787816,0.0789,68364.0,68361.0,2.84919713]
[1730108788353,0.0789,68364.0,68361.0,2.75282558]
[1730108789001,0.0789,68364.0,68361.0,2.76590706]
[1730108789245,0.200558,68362.0,68361.0,2.65216822]
[1730108789467,0.200558,68362.0,68361.0,2.76590706]
[1730108789908,0.200558,68362.0,68361.0,2.75282558]
[1730108790156,0.200558,68362.0,68361.0,2.76590693]
[1730108790605,0.200558,68362.0,68361.0,2.46541225]
[1730108790856,0.200558,68362.0,68361.0,2.28494462]
[1730108793981,0.11539684,68385.0,68378.0,0.00844937]
[1730108794198,0.11539684,68385.0,68378.0,0.3344171]
[1730108795344,0.11539684,68385.0,68378.0,0.3474171]
[1730108795772,0.11539684,68385.0,68378.0,0.34596773]
[1730108795954,0.11539684,68385.0,68378.0,0.3474171]
[1730108796375,0.11539684,68385.0,68378.0,0.3604171]
[1730108796999,0.202858,68379.0,68378.0,0.3474171]
[1730108797206,0.202858,68379.0,68378.0,0.48492091]
[1730108797405,0.202858,68379.0,68378.0,0.49792091]
[1730108797822,0.202858,68379.0,68378.0,0.48692091]
[1730108798034,0.202858,68379.0,68378.0,0.49992091]
[1730108798236,0.202858,68379.0,68378.0,0.51292091]
[1730108799283,0.202858,68379.0,68378.0,0.51319958]
[1730108799693,0.202858,68379.0,68378.0,0.65944458]
[1730108799898,0.202858,68379.0,68378.0,0.51319958]
[1730108801454,0.202858,68379.0,68378.0,0.33844479]
[1730108801654,0.202858,68379.0,68378.0,0.3514051]
[1730108802336,0.202858,68379.0,68378.0,0.3494051]
[1730108802800,0.21965019,68379.0,68378.0,0.3494051]
[1730108803014,0.21965019,68379.0,68378.0,0.51319919]
[1730108803256,0.202858,68379.0,68378.0,0.65944419]
[1730108803675,0.202858,68379.0,68378.0,0.51319919]
[1730108804544,0.202858,68379.0,68378.0,0.65944419]
[1730108804755,0.202858,68379.0,68378.0,0.65943529]
[1730108805385,0.202858,68379.0,68378.0,0.64447498]
[1730108805566,0.202858,68379.0,68378.0,0.65743032]
[1730108806128,0.202858,68379.0,68378.0,0.49563623]
[1730108806996,0.202858,68379.0,68378.0,0.34939123]
[1730108807165,0.202858,68379.0,68378.0,0.49418686]
[1730108807371,0.202858,68379.0,68378.0,0.48463623]
[1730108807580,0.202858,68379.0,68378.0,0.47163623]
[1730108807767,0.202858,68379.0,68378.0,0.49763623]
[1730108808123,0.202858,68379.0,68378.0,0.48463623]
[1730108808275,0.202858,68379.0,68378.0,0.47163623]
[1730108808488,0.202858,68379.0,68378.0,0.48463623]
[1730108809022,0.202858,68379.0,68378.0,0.45615352]
[1730108809211,0.202858,68379.0,68378.0,0.48463096]
[1730108809639,0.202858,68379.0,68378.0,0.49763096]
[1730108810262,0.202858,68379.0,68378.0,0.65927713]
[1730108810529,0.202858,68379.0,68378.0,0.64627713]
[1730108810728,0.202858,68379.0,68378.0,0.63327713]
[1730108810930,0.202858,68379.0,68378.0,0.64427713]
[1730108811151,0.202858,68379.0,68378.0,0.65727713]
[1730108811372,0.202858,68379.0,68378.0,0.65927713]
[1730108811786,0.202858,68379.0,68378.0,1.09801713]
[1730108812530,0.202858,68379.0,68378.0,1.14361941]
[1730108812742,0.202858,68379.0,68378.0,1.14359762]
[1730108813149,0.202858,68379.0,68378.0,1.14159762]
[1730108813379,0.202858,68379.0,68378.0,0.93634917]
[1730108813718,0.202858,68379.0,68378.0,0.9363485]
[1730108814858,0.202858,68379.0,68378.0,0.88195069]
[1730108815064,0.202858,68379.0,68378.0,0.8363485]
[1730108815266,0.202858,68379.0,68378.0,0.88194905]
[1730108815476,0.202858,68379.0,68378.0,0.8363485]
[1730108816636,0.202858,68379.0,68378.0,0.83635239]
[1730108816922,0.202858,68379.0,68378.0,0.80789352]
[1730108817127,0.202858,68379.0,68378.0,0.83635251]
[1730108820264,0.202858,68379.0,68378.0,0.96948014]
[1730108820471,0.202858,68379.0,68378.0,0.99793684]
[1730108821168,0.202858,68379.0,68378.0,0.84969184]
[1730108821409,0.202858,68379.0,68378.0,0.99593684]
[1730108822036,0.202858,68379.0,68378.0,0.99596028]
[1730108823112,0.202858,68379.0,68378.0,0.98500494]
[1730108823590,0.082958,68379.0,68378.0,0.99594998]
[1730108823825,0.082958,68379.0,68378.0,0.99794998]
[1730108824008,0.082958,68379.0,68378.0,0.99594998]
[1730108824275,0.082958,68379.0,68378.0,0.99794998]
[1730108826460,0.082958,68379.0,68378.0,0.98500494]
[1730108826673,0.082958,68379.0,68378.0,0.99795429]
[1730108827761,0.082958,68379.0,68378.0,0.99650492]
[1730108827965,0.082958,68379.0,68378.0,0.99450492]
[1730108828181,0.082958,68379.0,68378.0,0.99650492]
[1730108829087,0.082958,68379.0,68378.0,0.99450492]
[1730108829352,0.082958,68379.0,68378.0,0.99650492]
[1730108829586,0.082958,68379.0,68378.0,0.99450492]
[1730108832658,0.082958,68379.0,68378.0,0.99650492]
[1730108833311,0.082958,68379.0,68378.0,1.04212247]
[1730108833525,0.082958,68379.0,68378.0,1.04012247]
[1730108833952,0.082958,68379.0,68378.0,1.04012326]
[1730108834394,0.082958,68379.0,68378.0,1.0421236]
[1730108835227,0.082958,68379.0,68378.0,1.0401236]
[1730108839474,0.082958,68379.0,68378.0,1.0421236]
[1730108840545,0.082958,68379.0,68378.0,1.0401236]
[1730108842295,0.082958,68379.0,68378.0,1.0421236]
[1730108842920,0.082958,68379.0,68378.0,1.0401236]
[1730108845589,0.082958,68379.0,68378.0,1.01166123]
[1730108845801,0.082958,68379.0,68378.0,1.04013506]
[1730108846022,0.082958,68379.0,68378.0,1.04017973]
[1730108848235,0.082958,68379.0,68378.0,0.89393473]
[1730108848520,0.082958,68379.0,68378.0,1.04017973]
[1730108848946,0.082958,68379.0,68378.0,1.02723492]
[1730108849155,0.082958,68379.0,68378.0,1.04018412]
[1730108851241,0.082958,68379.0,68378.0,0.89393912]
[1730108851842,0.082958,68379.0,68378.0,0.97972452]
[1730108852080,0.082958,68379.0,68378.0,0.95172577]
[1730108852308,0.232858,68379.0,68378.0,0.80937585]
[1730108852542,0.24742759,68379.0,68378.0,0.80937585]
[1730108855409,0.24742759,68379.0,68378.0,0.80937763]
[1730108856362,0.50740943,68379.0,68378.0,0.80937763]
[1730108856600,0.50740943,68379.0,68378.0,0.52149082]
[1730108856807,0.50740943,68379.0,68378.0,0.52348073]
[1730108856808,0.39367059,68379.0,68378.0,0.52348073]
[1730108857020,0.39367059,68379.0,68378.0,0.47768036]
[1730108857270,0.39367059,68379.0,68378.0,0.47968036]
[1730108857498,0.39367059,68379.0,68378.0,0.45368036]
[1730108857721,0.50740943,68379.0,68378.0,0.46468036]
[1730108857930,0.50740943,68379.0,68378.0,0.46971666]
[1730108858147,0.50740943,68379.0,68378.0,0.45174]
[1730108858361,0.50740943,68379.0,68378.0,0.4567143]
[1730108858582,0.50740943,68379.0,68378.0,0.4647143]
[1730108859037,0.50960398,68379.0,68378.0,0.4567143]
[1730108859286,0.62334282,68379.0,68378.0,0.4647143]
[1730108859494,0.51534289,68379.0,68378.0,0.4437143]
[1730108860606,0.62908173,68379.0,68378.0,0.4437143]
[1730108860824,0.63263236,68379.0,68378.0,0.43874]
[1730108861033,0.65554407,68379.0,68378.0,0.43874]
[1730108861478,0.65554407,68379.0,68365.0,0.003644]
[1730108861479,0.146269,68367.0,68366.0,0.00496573]
[1730108861708,0.08564408,68367.0,68365.0,0.001644]
[1730108861937,0.58404868,68366.0,68365.0,0.001644]
[1730108862390,0.60428987,68366.0,68365.0,0.001644]
[1730108863256,0.6078405,68366.0,68365.0,0.001644]
[1730108863693,0.63075699,68366.0,68365.0,0.001644]
[1730108864977,0.63075699,68366.0,68365.0,0.002644]
[1730108865206,0.63075699,68366.0,68365.0,0.003644]
[1730108865448,0.63075699,68366.0,68365.0,0.002644]
[1730108865651,0.51701815,68366.0,68365.0,0.003644]
[1730108866072,0.49410166,68366.0,68365.0,0.003644]
[1730108866695,0.49410166,68366.0,68365.0,0.002644]
[1730108866912,0.49410166,68366.0,68365.0,0.003644]
[1730108867320,0.49410166,68366.0,68365.0,0.002644]
[1730108867523,0.49410166,68366.0,68365.0,0.001644]
[1730108867781,0.49410166,68366.0,68365.0,0.003644]
[1730108867995,0.49410166,68366.0,68365.0,0.002644]
[1730108868379,0.49410166,68366.0,68365.0,0.003644]
[1730108871076,0.49629688,68366.0,68365.0,0.002644]
[1730108871621,0.49629688,68366.0,68365.0,0.001644]
[1730108871847,0.61003572,68366.0,68365.0,0.001644]
[1730108873267,0.63295277,68366.0,68365.0,0.001644]
[1730108874904,0.51921393,68366.0,68365.0,0.001644]
[1730108875108,0.51921393,68366.0,68365.0,1.011644]
[1730108875945,0.63295277,68366.0,68365.0,1.011644]
[1730108876819,0.51921393,68366.0,68365.0,1.011644]
[1730108877022,0.51901988,68366.0,68365.0,1.011644]
[1730108878702,0.49610283,68366.0,68365.0,1.011644]
[1730108879178,0.60984167,68366.0,68365.0,1.011644]
[1730108881983,0.49610283,68366.0,68365.0,1.011644]
[1730108883058,0.51901922,68366.0,68365.0,1.011644]
[1730108884372,0.63275806,68366.0,68365.0,1.011644]
[1730108884594,0.51901922,68366.0,68365.0,1.011644]
[1730108887269,0.51901922,68366.0,68365.0,1.01661758]
[1730108888111,0.51901922,68366.0,68365.0,1.011644]
[1730108888347,0.51901922,68366.0,68365.0,1.01662077]
[1730108891270,0.37411922,68366.0,68365.0,1.01662077]
[1730108891911,0.37411922,68366.0,68365.0,1.011644]
[1730108892139,0.37411922,68366.0,68365.0,1.01662835]
[1730108892346,0.37411922,68366.0,68365.0,1.02460768]
[1730108892979,0.37494122,68366.0,68365.0,1.02460768]
[1730108893202,0.37494122,68366.0,68365.0,1.01662835]
[1730108894600,0.30954122,68366.0,68365.0,1.01662835]
[1730108895699,0.30954122,68366.0,68365.0,1.011644]
[1730108895942,0.30954122,68366.0,68365.0,1.01663312]
[1730108896805,0.19580238,68366.0,68365.0,1.01663312]
[1730108897041,0.30954122,68366.0,68365.0,1.01663312]
[1730108897256,0.19580238,68366.0,68365.0,1.02462057]
[1730108897467,0.19580238,68366.0,68365.0,1.15862057]
[1730108897468,0.19225175,68366.0,68365.0,1.15862057]
[1730108897699,0.19225175,68366.0,68365.0,1.23682057]
[1730108897925,0.02325841,68366.0,68365.0,1.4048951]
[1730108898152,0.16952941,68366.0,68365.0,1.4068951]
[1730108899288,0.16952941,68366.0,68365.0,1.4188951]
[1730108900606,0.16952941,68366.0,68365.0,1.40132438]
[1730108901320,0.16952941,68366.0,68365.0,1.39532438]
[1730108901753,0.16952941,68366.0,68365.0,1.39832438]
[1730108902206,0.16952941,68366.0,68365.0,1.39232438]
[1730108902399,0.16952941,68366.0,68365.0,1.39532438]
[1730108905155,0.16952941,68366.0,68365.0,1.39531422]
[1730108905367,0.16952941,68366.0,68365.0,1.39421722]
[1730108906863,0.16952941,68366.0,68365.0,1.38125081]
[1730108907086,0.16952941,68366.0,68365.0,1.39421566]
[1730108908258,0.16952941,68366.0,68365.0,1.38623689]
[1730108910614,0.16952941,68366.0,68365.0,1.38623638]
[1730108911084,0.16952941,68366.0,68365.0,1.15553257]
[1730108911549,0.16952941,68366.0,68365.0,1.02153257]
[1730108916543,0.16952941,68366.0,68365.0,1.01853257]
[1730108917007,0.16952941,68366.0,68365.0,1.01553257]
[1730108917238,0.16952941,68366.0,68365.0,1.01853257]
[1730108917951,0.16952941,68366.0,68365.0,1.01553257]
[1730108920484,0.16952941,68366.0,68365.0,1.22913257]
[1730108921450,0.02325841,68366.0,68365.0,1.37963638]
[1730108921958,0.02511327,68366.0,68365.0,1.37963638]
[1730108922657,0.02511327,68366.0,68365.0,1.54152052]
[1730108923145,0.02511327,68366.0,68365.0,1.54952052]
[1730108923366,0.02511327,68366.0,68365.0,1.61529331]
[1730108924041,0.00301722,68366.0,68365.0,1.61529331]
[1730108924274,0.02511327,68366.0,68365.0,1.62329331]
[1730108924520,0.00301722,68366.0,68365.0,1.46140746]
[1730108924740,0.00301722,68366.0,68365.0,1.44540746]
[1730108925184,0.02511327,68366.0,68365.0,1.46740746]
[1730108925415,0.00301722,68366.0,68365.0,1.40163467]
[1730108925741,0.02511327,68366.0,68365.0,1.41463448]
[1730108926381,0.02511327,68366.0,68365.0,1.40163448]
[1730108926838,0.02511327,68366.0,68365.0,1.41463448]
[1730108927512,0.17138427,68366.0,68365.0,1.41463448]
[1730108929559,0.02511327,68366.0,68365.0,1.41463448]
[1730108929994,0.17138427,68366.0,68365.0,1.41463448]
[1730108935897,0.02511327,68366.0,68365.0,1.41463448]
[1730108936115,0.14928822,68366.0,68365.0,1.41463448]
[1730108936323,0.17141152,68366.0,68365.0,1.41463448]
[1730108936757,0.17141152,68366.0,68365.0,1.40965081]
[1730108936977,0.17141152,68366.0,68365.0,1.41463241]
[1730108937877,0.02514052,68366.0,68365.0,1.75792119]
[1730108938091,0.00301722,68366.0,68365.0,1.83844738]
[1730108938576,0.00301722,68366.0,68365.0,1.91303477]
[1730108938783,0.00301722,68366.0,68365.0,1.92603477]
[1730108938935,0.00301722,68366.0,68365.0,1.93903477]
[1730108939145,0.00301722,68366.0,68365.0,1.92403477]
[1730108939349,0.00301722,68366.0,68365.0,1.80336295]
[1730108939539,0.00301722,68366.0,68365.0,1.92588672]
[1730108939740,0.00301722,68366.0,68365.0,1.93888672]
[1730108939989,0.00301722,68366.0,68365.0,1.82936295]
[1730108940190,0.00301722,68366.0,68365.0,1.82736295]
[1730108940399,0.00301722,68366.0,68365.0,1.56236951]
[1730108940610,0.00301722,68366.0,68365.0,1.67687486]
[1730108940815,0.00301722,68366.0,68365.0,1.56734813]
[1730108941625,0.00301722,68366.0,68365.0,1.71362113]
[1730108942253,0.00301722,68366.0,68365.0,1.56734813]
[1730108942458,0.02518627,68366.0,68365.0,1.56734813]
[1730108942654,0.00301722,68366.0,68365.0,1.56734813]
[1730108942879,0.00301722,68366.0,68365.0,1.56735842]
[1730108943096,0.00301722,68366.0,68365.0,1.56735853]
[1730108943873,0.00301722,68366.0,68365.0,1.71563153]
[1730108944082,0.00301722,68366.0,68365.0,1.82516227]
[1730108944514,0.00301722,68366.0,68365.0,1.73863153]
[1730108944974,0.00301722,68366.0,68365.0,1.8450809]
[1730108945678,0.000822,68378.0,68377.0,0.50808684]
[1730108945918,0.000822,68378.0,68377.0,0.82517484]
[1730108946148,0.000822,68378.0,68377.0,0.82717484]
[1730108946619,0.000822,68378.0,68377.0,0.82219611]
[1730108946840,0.000822,68378.0,68377.0,0.91472916]
[1730108947055,0.000822,68378.0,68377.0,0.82717143]
[1730108947297,0.000822,68378.0,68377.0,0.83717143]
[1730108947731,0.000822,68378.0,68377.0,0.92466136]
[1730108947941,0.000822,68378.0,68377.0,0.84617143]
[1730108948378,0.000822,68378.0,68377.0,0.95561859]
[1730108948632,0.000822,68378.0,68377.0,0.84617143]
[1730108949093,0.00219514,68383.0,68378.0,0.395345]
[1730108949094,1e-08,68379.0,68378.0,0.395345]
[1730108949318,1e-08,68379.0,68378.0,0.71242959]
[1730108949787,1e-08,68379.0,68378.0,0.82168321]
[1730108950000,1e-08,68379.0,68378.0,0.81887896]
[1730108950435,1e-08,68379.0,68378.0,0.83187896]
[1730108950692,0.001658,68385.0,68378.0,0.83187896]
[1730108950693,0.001658,68385.0,68384.0,0.150233]
[1730108950946,0.29241,68398.0,68384.0,0.56118552]
[1730108951182,0.29241,68398.0,68397.0,0.2281]
[1730108951183,0.146203,68398.0,68397.0,0.2281]
[1730108951396,0.146203,68398.0,68397.0,0.38357913]
[1730108952316,0.146203,68398.0,68397.0,0.15747913]
[1730108953019,0.146203,68398.0,68397.0,0.15250381]
[1730108954814,0.1483968,68398.0,68397.0,0.15250381]
[1730108955036,0.1493968,68398.0,68397.0,0.15250381]
[1730108955257,0.17176978,68398.0,68397.0,0.15250381]
[1730108955481,0.17076978,68398.0,68397.0,0.15250381]
[1730108955706,0.17176978,68398.0,68397.0,0.15250381]
[1730108957556,0.17076978,68398.0,68397.0,0.15250381]
[1730108958053,0.17076978,68398.0,68397.0,0.16450381]
[1730108958506,0.17076978,68398.0,68397.0,0.002]
[1730108958734,0.17076978,68398.0,68397.0,0.01]
[1730108958953,0.17076978,68398.0,68397.0,0.023]
[1730108959414,0.17076978,68398.0,68397.0,0.01]
[1730108959635,0.17076978,68398.0,68397.0,0.018]
[1730108960582,0.17076978,68398.0,68397.0,0.30430381]
[1730108960802,0.02456678,68398.0,68397.0,0.37950381]
[1730108961241,0.17076978,68398.0,68397.0,0.37950381]
[1730108963945,0.17076978,68398.0,68397.0,0.38445866]
[1730108964171,0.17076978,68398.0,68397.0,0.37950381]
[1730108964663,0.17076978,68398.0,68397.0,0.38445866]
[1730108964883,0.17159178,68398.0,68397.0,0.38445866]
[1730108965449,0.17159178,68398.0,68397.0,0.37950381]
[1730108965627,0.17159178,68398.0,68397.0,0.16850381]
[1730108965859,0.16939798,68398.0,68397.0,0.16850381]
[1730108966104,0.16939798,68398.0,68397.0,0.30190381]
[1730108966336,0.16939798,68398.0,68397.0,0.30685884]
[1730108966791,0.17159174,68398.0,68397.0,0.30685972]
[1730108967228,0.17159174,68398.0,68397.0,0.17345972]
[1730108969252,0.17159174,68398.0,68397.0,0.18138992]
[1730108971246,0.02538874,68398.0,68397.0,0.584556]
[1730108971932,0.02538874,68398.0,68397.0,0.55809492]
[1730108972152,0.02538874,68398.0,68397.0,0.42279635]
[1730108972821,0.02538874,68398.0,68397.0,0.56900135]
[1730108973035,0.02538874,68398.0,68397.0,0.74266743]
[1730108973312,0.02538874,68398.0,68397.0,0.80267618]
[1730108973686,1.001658,68400.0,68399.0,0.002]
[1730108973911,1.001658,68400.0,68399.0,0.17629635]
[1730108974129,1.147856,68400.0,68399.0,0.17629635]
[1730108974558,1.147856,68400.0,68399.0,0.19374156]
[1730108974786,1.147856,68400.0,68399.0,0.17629635]
[1730108974997,1.001658,68400.0,68399.0,0.34694156]
[1730108975220,1.001658,68400.0,68399.0,0.48724156]
[1730108975464,1.001658,68400.0,68399.0,0.49324156]
[1730108976333,1.001658,68400.0,68399.0,0.48724156]
[1730108976550,1.001658,68400.0,68399.0,0.49224156]
[1730108977193,1.001658,68400.0,68399.0,0.54578917]
[1730108977411,1.001658,68400.0,68399.0,0.50224156]
[1730108977643,1.001658,68400.0,68399.0,0.62168917]
[1730108978095,1.001658,68400.0,68399.0,0.64348687]
[1730108978322,1.001658,68400.0,68399.0,0.66648687]
[1730108978767,1.001658,68400.0,68399.0,0.86832089]
[1730108979005,1.001658,68400.0,68399.0,0.86839746]
[1730108979236,1.001658,68400.0,68399.0,0.96439102]
[1730108979461,1.001658,68400.0,68399.0,0.87586729]
[1730108979686,1.001658,68400.0,68399.0,0.87581791]
[1730108979903,1.001658,68400.0,68399.0,0.87881791]
[1730108980121,1.001658,68400.0,68399.0,0.89181791]
[1730108980327,1.001658,68400.0,68399.0,0.98763862]
[1730108980540,1.001658,68400.0,68399.0,0.87881791]
[1730108980781,1.001658,68400.0,68399.0,0.7945356]
[1730108981008,1.001658,68400.0,68399.0,0.61209715]
[1730108981228,1.001658,68400.0,68399.0,0.77281886]
[1730108981454,1.001658,68400.0,68399.0,0.61211189]
[1730108981667,1.001658,68400.0,68399.0,0.70753237]
[1730108982124,1.001658,68400.0,68399.0,0.77285141]
[1730108982332,1.001658,68400.0,68399.0,0.612107]
[1730108982545,1.001658,68400.0,68399.0,0.70756719]
[1730108983217,1.001658,68400.0,68399.0,0.70755915]
[1730108983502,1.001658,68400.0,68399.0,0.79462621]
[1730108983714,0.95591213,68400.0,68399.0,0.70759881]
[1730108983933,0.98247507,68400.0,68399.0,0.70759881]
[1730108984820,0.98247507,68400.0,68399.0,0.70959881]
[1730108985254,0.95591213,68400.0,68399.0,0.79059881]
[1730108985693,0.98247507,68400.0,68399.0,0.79059881]
[1730108986144,0.98247507,68400.0,68399.0,0.79704818]
[1730108986351,0.98247507,68400.0,68399.0,0.8686478]
[1730108986784,0.98247507,68400.0,68399.0,0.8556478]
[1730108987024,0.98247507,68400.0,68399.0,0.8426478]
[1730108987686,0.98247507,68400.0,68399.0,0.8556478]
[1730108988334,0.98329707,68400.0,68399.0,0.8556478]
[1730108988618,0.98329707,68400.0,68399.0,0.8686478]
[1730108989062,0.98329707,68400.0,68399.0,0.86871258]
[1730108989279,0.98329707,68400.0,68399.0,0.85571258]
[1730108989498,0.98329707,68400.0,68399.0,0.86871258]
[1730108990839,0.98329707,68400.0,68399.0,0.86870911]
[1730108991067,0.98329707,68400.0,68399.0,0.88617332]
[1730108991288,0.98329707,68400.0,68399.0,0.88617215]
[1730108991513,0.98329707,68400.0,68399.0,1.0169987]
[1730108991722,0.98329707,68400.0,68399.0,0.88617215]
[1730108993486,0.98329707,68400.0,68399.0,0.88624549]
[1730108993736,0.95036608,68400.0,68399.0,1.37028631]
[1730108993961,0.95036608,68400.0,68399.0,1.32484549]
[1730108995945,0.95036608,68400.0,68399.0,1.32339612]
[1730108996387,0.95036608,68400.0,68399.0,1.30593191]
[1730108998398,0.95036608,68400.0,68399.0,1.35284539]
[1730108998623,0.95036608,68400.0,68399.0,1.35285153]
[1730109000412,0.95036608,68400.0,68399.0,1.54600043]
[1730109000843,0.95036608,68400.0,68399.0,1.53464443]
[1730109001058,0.95036608,68400.0,68399.0,1.52164443]
[1730109001272,0.95036608,68400.0,68399.0,1.34158861]
[1730109001492,0.95036608,68400.0,68399.0,1.19354576]
[1730109001707,0.95036608,68400.0,68399.0,1.33703891]
[1730109001933,0.95036608,68400.0,68399.0,1.35450524]
[1730109003826,0.90463332,68400.0,68399.0,1.35450524]
[1730109004345,0.90463332,68400.0,68399.0,1.54760528]